{"text_format":"1","workbook":"xlsx","n_sheets":1,"sheets":["Pressupost Projecte Bb"],"not_rendered":{"charts":0,"images":2,"macros":1,"external_links":0,"defined_names":6,"comments":1,"pivot_tables":0},"unopened":[],"bounds":{"document_bytes":16777216,"sheet_cells":100000,"rows_first":2000,"rows_last":500,"rows_between":2000,"halvings":0,"cell_chars":16384,"cell_head_chars":4096},"cells_cut":0,"cells_raw":0,"read":"whole","date_system":"1900"}

{"sheet":"Pressupost Projecte Bb","index":0,"n_rows":148,"n_cols":4,"rows_kept":148,"cut":false,"hidden":false,"merged":[[122,2,124,3],[17,0,17,3],[142,0,142,3],[143,0,143,3],[145,0,145,3],[144,0,144,3],[137,0,137,3],[138,0,138,3],[139,0,139,3],[140,0,140,3],[141,0,141,3],[131,0,131,3],[132,0,132,3],[0,2,0,3],[1,2,1,3],[5,2,5,3],[6,2,6,3],[2,1,4,3],[146,0,146,3],[147,0,147,3],[126,0,126,3],[127,0,127,3],[128,0,128,3],[129,0,129,3],[130,0,130,3],[133,0,133,3],[134,0,134,3],[135,0,135,3],[136,0,136,3]]}
[null,null,"Document bàsic 3"]
[null,null,"Àmbit temàtic \"B\": Intercooperació"]
["Programa de subvencions 2021 de l'Ajuntament de Barcelona per a","Modalitat Bb: Creació, desenvolupament i enfortiment d’ecosistemes cooperatius i clústers d’ESS"]
["l'enfortimen i reactivació de l'Economia Social i Solidària i el"]
["desenvolupament de projectes que executen l'Estratègia ESS 2030 BCN"]
[null,null,"Cal omplir les cel·les en blanc i si escau afegir les files necessàries"]
[null,null,"Abans d'omplir, consultar anotacions a peu de pàgina"]
[]
["DADES BÀSIQUES"]
["Nom de l'organització"]
["CIF de l'organització"]
["Títol del projecte subvencionable"]
["Import total del projecte subvencionable"]
["Import imputable a la subvenció municipal"]
["Import de l'aportació / Cofinançament de l'organització",{"$f":"$B$13-$B$14","v":0}]
["% de l'import sol·licitat respecte import total del projecte subvencionable",{"$f":"B14/B13","v":{"$error":"#DIV/0!"}}]
[]
["PREVISIÓ DE DESPESES DEL PROJECTE SUBVENCIONABLE PER SUBMODALITAT Bb1 i Bb2"]
[]
["Partides","Import imputable a la subvenció municipal","Import de l'aportació / Cofinançament de l'organització","Import total del projecte"]
["D1a.  - Nòmines i seguretat social (règim general o règim d’autònoms) del personal propi vinculat al projecte",{"$f":"SUM(B22:B24)","v":0},{"$f":"SUM(C22:C24)","v":0},{"$f":"SUM(DespesesProjecte[[#This Row],[Import imputable a la subvenció municipal]],DespesesProjecte[[#This Row],[Import de l''aportació / Cofinançament de l''organització]])","v":0}]
[null,null,null,{"$f":"SUM(DespesesProjecte[[#This Row],[Import imputable a la subvenció municipal]],DespesesProjecte[[#This Row],[Import de l''aportació / Cofinançament de l''organització]])","v":0}]
[null,null,null,{"$f":"SUM(DespesesProjecte[[#This Row],[Import imputable a la subvenció municipal]],DespesesProjecte[[#This Row],[Import de l''aportació / Cofinançament de l''organització]])","v":0}]
[null,null,null,{"$f":"SUM(DespesesProjecte[[#This Row],[Import imputable a la subvenció municipal]],DespesesProjecte[[#This Row],[Import de l''aportació / Cofinançament de l''organització]])","v":0}]
["D1b.  - Nòmines i seguretat social (règim general o règim d’autònoms) del personal de nova contractació assignat al projecte",{"$f":"SUM(B26:B28)","v":0},{"$f":"SUM(C26:C28)","v":0},{"$f":"SUM(DespesesProjecte[[#This Row],[Import imputable a la subvenció municipal]],DespesesProjecte[[#This Row],[Import de l''aportació / Cofinançament de l''organització]])","v":0}]
[null,null,null,{"$f":"SUM(DespesesProjecte[[#This Row],[Import imputable a la subvenció municipal]],DespesesProjecte[[#This Row],[Import de l''aportació / Cofinançament de l''organització]])","v":0}]
[null,null,null,{"$f":"SUM(DespesesProjecte[[#This Row],[Import imputable a la subvenció municipal]],DespesesProjecte[[#This Row],[Import de l''aportació / Cofinançament de l''organització]])","v":0}]
[null,null,null,{"$f":"SUM(DespesesProjecte[[#This Row],[Import imputable a la subvenció municipal]],DespesesProjecte[[#This Row],[Import de l''aportació / Cofinançament de l''organització]])","v":0}]
["TOTAL DE DESPESES DEL PERSONAL\nMax 30% de l'import imputable a la subvenció municipal si és tracta de personal propi amb antiguitat anterior a la data d'inici al projecte\nMax 50% de l'import imputable a la subvenció municipal si és tracta de personal de nova contractació assignat al projecte",{"$f":"SUM(B21,B25)","v":0},{"$f":"SUM(C21,C25)","v":0},{"$f":"SUM(D21,D25)","v":0}]
["D2.  Treballs realitzats per professionals i empreses externes directament vinculades al projecte subvencionable",{"$f":"SUM(B31:B33)","v":0},{"$f":"SUM(C31:C33)","v":0},{"$f":"SUM(DespesesProjecte[[#This Row],[Import imputable a la subvenció municipal]],DespesesProjecte[[#This Row],[Import de l''aportació / Cofinançament de l''organització]])","v":0}]
[null,null,null,{"$f":"SUM(DespesesProjecte[[#This Row],[Import imputable a la subvenció municipal]],DespesesProjecte[[#This Row],[Import de l''aportació / Cofinançament de l''organització]])","v":0}]
[null,null,null,{"$f":"SUM(DespesesProjecte[[#This Row],[Import imputable a la subvenció municipal]],DespesesProjecte[[#This Row],[Import de l''aportació / Cofinançament de l''organització]])","v":0}]
[null,null,null,{"$f":"SUM(DespesesProjecte[[#This Row],[Import imputable a la subvenció municipal]],DespesesProjecte[[#This Row],[Import de l''aportació / Cofinançament de l''organització]])","v":0}]
["D3.  Lloguer de bens mobles / immobles directament vinculats al projecte subvencionable. Max 25% de l'import imputable a la subvenció municipal si és tracta d'un nou espai físic necessari pel desenvolupament del projecte subvencionable",{"$f":"SUM(B35:B37)","v":0},{"$f":"SUM(C35:C37)","v":0},{"$f":"SUM(DespesesProjecte[[#This Row],[Import imputable a la subvenció municipal]],DespesesProjecte[[#This Row],[Import de l''aportació / Cofinançament de l''organització]])","v":0}]
[null,null,null,{"$f":"SUM(DespesesProjecte[[#This Row],[Import imputable a la subvenció municipal]],DespesesProjecte[[#This Row],[Import de l''aportació / Cofinançament de l''organització]])","v":0}]
[null,null,null,{"$f":"SUM(DespesesProjecte[[#This Row],[Import imputable a la subvenció municipal]],DespesesProjecte[[#This Row],[Import de l''aportació / Cofinançament de l''organització]])","v":0}]
[null,null,null,{"$f":"SUM(DespesesProjecte[[#This Row],[Import imputable a la subvenció municipal]],DespesesProjecte[[#This Row],[Import de l''aportació / Cofinançament de l''organització]])","v":0}]
["D4.  Adquisició de materials i béns consumibles íntegrament imputables al projecte subvencionable",{"$f":"SUM(B39:B41)","v":0},{"$f":"SUM(C39:C41)","v":0},{"$f":"SUM(DespesesProjecte[[#This Row],[Import imputable a la subvenció municipal]],DespesesProjecte[[#This Row],[Import de l''aportació / Cofinançament de l''organització]])","v":0}]
[null,null,null,{"$f":"SUM(DespesesProjecte[[#This Row],[Import imputable a la subvenció municipal]],DespesesProjecte[[#This Row],[Import de l''aportació / Cofinançament de l''organització]])","v":0}]
[null,null,null,{"$f":"SUM(DespesesProjecte[[#This Row],[Import imputable a la subvenció municipal]],DespesesProjecte[[#This Row],[Import de l''aportació / Cofinançament de l''organització]])","v":0}]
[null,null,null,{"$f":"SUM(DespesesProjecte[[#This Row],[Import imputable a la subvenció municipal]],DespesesProjecte[[#This Row],[Import de l''aportació / Cofinançament de l''organització]])","v":0}]
["D5.  Transport – missatgeria imputables al projecte subvencionable",{"$f":"SUM(B43:B45)","v":0},{"$f":"SUM(C43:C45)","v":0},{"$f":"DespesesProjecte[[#This Row],[Import imputable a la subvenció municipal]]+DespesesProjecte[[#This Row],[Import de l''aportació / Cofinançament de l''organització]]","v":0}]
[null,null,null,{"$f":"SUM(DespesesProjecte[[#This Row],[Import imputable a la subvenció municipal]],DespesesProjecte[[#This Row],[Import de l''aportació / Cofinançament de l''organització]])","v":0}]
[null,null,null,{"$f":"SUM(DespesesProjecte[[#This Row],[Import imputable a la subvenció municipal]],DespesesProjecte[[#This Row],[Import de l''aportació / Cofinançament de l''organització]])","v":0}]
[null,null,null,{"$f":"SUM(DespesesProjecte[[#This Row],[Import imputable a la subvenció municipal]],DespesesProjecte[[#This Row],[Import de l''aportació / Cofinançament de l''organització]])","v":0}]
["D6.  Publicitat i propaganda de les activitats directament vinculades al projecte subvencionable",{"$f":"SUM(B47:B49)","v":0},{"$f":"SUM(C47:C49)","v":0},{"$f":"SUM(DespesesProjecte[[#This Row],[Import imputable a la subvenció municipal]],DespesesProjecte[[#This Row],[Import de l''aportació / Cofinançament de l''organització]])","v":0}]
[null,null,null,{"$f":"SUM(DespesesProjecte[[#This Row],[Import imputable a la subvenció municipal]],DespesesProjecte[[#This Row],[Import de l''aportació / Cofinançament de l''organització]])","v":0}]
[null,null,null,{"$f":"SUM(DespesesProjecte[[#This Row],[Import imputable a la subvenció municipal]],DespesesProjecte[[#This Row],[Import de l''aportació / Cofinançament de l''organització]])","v":0}]
[null,null,null,{"$f":"SUM(DespesesProjecte[[#This Row],[Import imputable a la subvenció municipal]],DespesesProjecte[[#This Row],[Import de l''aportació / Cofinançament de l''organització]])","v":0}]
["D7.  Allotjament i dietes, del personal contractat i persones voluntàries imputables a les activitats del projecte subvencionable",{"$f":"SUM(B51:B53)","v":0},{"$f":"SUM(C51:C53)","v":0},{"$f":"SUM(DespesesProjecte[[#This Row],[Import imputable a la subvenció municipal]],DespesesProjecte[[#This Row],[Import de l''aportació / Cofinançament de l''organització]])","v":0}]
[null,null,null,{"$f":"SUM(DespesesProjecte[[#This Row],[Import imputable a la subvenció municipal]],DespesesProjecte[[#This Row],[Import de l''aportació / Cofinançament de l''organització]])","v":0}]
[null,null,null,{"$f":"SUM(DespesesProjecte[[#This Row],[Import imputable a la subvenció municipal]],DespesesProjecte[[#This Row],[Import de l''aportació / Cofinançament de l''organització]])","v":0}]
[null,null,null,{"$f":"SUM(DespesesProjecte[[#This Row],[Import imputable a la subvenció municipal]],DespesesProjecte[[#This Row],[Import de l''aportació / Cofinançament de l''organització]])","v":0}]
["D8.  Ajuts al transport per als/les participants dels projectes en cas que sigui necessari de manera justificada",{"$f":"SUM(B55:B57)","v":0},{"$f":"SUM(C55:C57)","v":0},{"$f":"SUM(DespesesProjecte[[#This Row],[Import imputable a la subvenció municipal]],DespesesProjecte[[#This Row],[Import de l''aportació / Cofinançament de l''organització]])","v":0}]
[null,null,null,{"$f":"SUM(DespesesProjecte[[#This Row],[Import imputable a la subvenció municipal]],DespesesProjecte[[#This Row],[Import de l''aportació / Cofinançament de l''organització]])","v":0}]
[null,null,null,{"$f":"SUM(DespesesProjecte[[#This Row],[Import imputable a la subvenció municipal]],DespesesProjecte[[#This Row],[Import de l''aportació / Cofinançament de l''organització]])","v":0}]
[null,null,null,{"$f":"SUM(DespesesProjecte[[#This Row],[Import imputable a la subvenció municipal]],DespesesProjecte[[#This Row],[Import de l''aportació / Cofinançament de l''organització]])","v":0}]
["D9.  Viatges i desplaçaments imputables a les activitats del projecte subvencionable",{"$f":"SUM(B59:B61)","v":0},{"$f":"SUM(C59:C61)","v":0},{"$f":"DespesesProjecte[[#This Row],[Import imputable a la subvenció municipal]]+DespesesProjecte[[#This Row],[Import de l''aportació / Cofinançament de l''organització]]","v":0}]
[null,null,null,{"$f":"SUM(DespesesProjecte[[#This Row],[Import imputable a la subvenció municipal]],DespesesProjecte[[#This Row],[Import de l''aportació / Cofinançament de l''organització]])","v":0}]
[null,null,null,{"$f":"SUM(DespesesProjecte[[#This Row],[Import imputable a la subvenció municipal]],DespesesProjecte[[#This Row],[Import de l''aportació / Cofinançament de l''organització]])","v":0}]
[null,null,null,{"$f":"SUM(DespesesProjecte[[#This Row],[Import imputable a la subvenció municipal]],DespesesProjecte[[#This Row],[Import de l''aportació / Cofinançament de l''organització]])","v":0}]
["D10.  Tributs, quan siguin abonats directament per la persona jurídica o física beneficiària",{"$f":"SUBTOTAL(109,B63:B65)","v":0},{"$f":"SUBTOTAL(109,C63:C65)","v":0},{"$f":"DespesesProjecte[[#This Row],[Import imputable a la subvenció municipal]]+DespesesProjecte[[#This Row],[Import de l''aportació / Cofinançament de l''organització]]","v":0}]
[null,null,null,{"$f":"SUM(DespesesProjecte[[#This Row],[Import imputable a la subvenció municipal]],DespesesProjecte[[#This Row],[Import de l''aportació / Cofinançament de l''organització]])","v":0}]
[null,null,null,{"$f":"SUM(DespesesProjecte[[#This Row],[Import imputable a la subvenció municipal]],DespesesProjecte[[#This Row],[Import de l''aportació / Cofinançament de l''organització]])","v":0}]
[null,null,null,{"$f":"SUM(DespesesProjecte[[#This Row],[Import imputable a la subvenció municipal]],DespesesProjecte[[#This Row],[Import de l''aportació / Cofinançament de l''organització]])","v":0}]
["D11. Despeses de l’informe d’auditoria, quan sigui obligatòria la seva presentació per import de la subvenció",{"$f":"SUM(B67:B69)","v":0},{"$f":"SUM(C67:C69)","v":0},{"$f":"DespesesProjecte[[#This Row],[Import de l''aportació / Cofinançament de l''organització]]","v":0}]
[null,null,null,{"$f":"SUM(DespesesProjecte[[#This Row],[Import imputable a la subvenció municipal]],DespesesProjecte[[#This Row],[Import de l''aportació / Cofinançament de l''organització]])","v":0}]
[null,null,null,{"$f":"SUM(DespesesProjecte[[#This Row],[Import imputable a la subvenció municipal]],DespesesProjecte[[#This Row],[Import de l''aportació / Cofinançament de l''organització]])","v":0}]
[null,null,null,{"$f":"SUM(DespesesProjecte[[#This Row],[Import imputable a la subvenció municipal]],DespesesProjecte[[#This Row],[Import de l''aportació / Cofinançament de l''organització]])","v":0}]
["D12.  Altres despeses que de manera justificada i per la tipologia del projecte puguin imputar-se directament al projecte subvencionable",{"$f":"SUM(B71:B73)","v":0},{"$f":"SUM(C71:C73)","v":0},{"$f":"SUM(DespesesProjecte[[#This Row],[Import imputable a la subvenció municipal]],DespesesProjecte[[#This Row],[Import de l''aportació / Cofinançament de l''organització]])","v":0}]
[null,null,null,{"$f":"SUM(DespesesProjecte[[#This Row],[Import imputable a la subvenció municipal]],DespesesProjecte[[#This Row],[Import de l''aportació / Cofinançament de l''organització]])","v":0}]
[null,null,null,{"$f":"SUM(DespesesProjecte[[#This Row],[Import imputable a la subvenció municipal]],DespesesProjecte[[#This Row],[Import de l''aportació / Cofinançament de l''organització]])","v":0}]
[null,null,null,{"$f":"SUM(DespesesProjecte[[#This Row],[Import imputable a la subvenció municipal]],DespesesProjecte[[#This Row],[Import de l''aportació / Cofinançament de l''organització]])","v":0}]
["TOTAL DESPESES DIRECTES (aquelles que s’identifiquen directament amb el projecte subvencionable)",{"$f":"B21+B25+B30+B34+B38+B42+B46+B50+B54+B58+B62+B66+B70","v":0},{"$f":"C21+C25+C30+C34+C38+C42+C46+C50+C54+C58+C62+C66+C70","v":0},0]
["I1. Personal de suport al projecte (nòmines i seguretat social)",{"$f":"SUM(B76:B78)","v":0},{"$f":"SUM(C76:C78)","v":0},{"$f":"SUM(DespesesProjecte[[#This Row],[Import imputable a la subvenció municipal]],DespesesProjecte[[#This Row],[Import de l''aportació / Cofinançament de l''organització]])","v":0}]
[null,null,null,{"$f":"SUM(DespesesProjecte[[#This Row],[Import imputable a la subvenció municipal]],DespesesProjecte[[#This Row],[Import de l''aportació / Cofinançament de l''organització]])","v":0}]
[null,null,null,{"$f":"SUM(DespesesProjecte[[#This Row],[Import imputable a la subvenció municipal]],DespesesProjecte[[#This Row],[Import de l''aportació / Cofinançament de l''organització]])","v":0}]
[null,null,null,{"$f":"SUM(DespesesProjecte[[#This Row],[Import imputable a la subvenció municipal]],DespesesProjecte[[#This Row],[Import de l''aportació / Cofinançament de l''organització]])","v":0}]
["I2.  Assegurances",{"$f":"SUM(B80:B82)","v":0},{"$f":"SUM(C80:C82)","v":0},{"$f":"SUM(DespesesProjecte[[#This Row],[Import imputable a la subvenció municipal]],DespesesProjecte[[#This Row],[Import de l''aportació / Cofinançament de l''organització]])","v":0}]
[null,null,null,{"$f":"SUM(DespesesProjecte[[#This Row],[Import imputable a la subvenció municipal]],DespesesProjecte[[#This Row],[Import de l''aportació / Cofinançament de l''organització]])","v":0}]
[null,null,null,{"$f":"SUM(DespesesProjecte[[#This Row],[Import imputable a la subvenció municipal]],DespesesProjecte[[#This Row],[Import de l''aportació / Cofinançament de l''organització]])","v":0}]
[null,null,null,{"$f":"SUM(DespesesProjecte[[#This Row],[Import imputable a la subvenció municipal]],DespesesProjecte[[#This Row],[Import de l''aportació / Cofinançament de l''organització]])","v":0}]
["I3.  Amortització",{"$f":"SUM(B84:B86)","v":0},{"$f":"SUM(C84:C86)","v":0},{"$f":"SUM(DespesesProjecte[[#This Row],[Import imputable a la subvenció municipal]],DespesesProjecte[[#This Row],[Import de l''aportació / Cofinançament de l''organització]])","v":0}]
[null,null,null,{"$f":"SUM(DespesesProjecte[[#This Row],[Import imputable a la subvenció municipal]],DespesesProjecte[[#This Row],[Import de l''aportació / Cofinançament de l''organització]])","v":0}]
[null,null,null,{"$f":"SUM(DespesesProjecte[[#This Row],[Import imputable a la subvenció municipal]],DespesesProjecte[[#This Row],[Import de l''aportació / Cofinançament de l''organització]])","v":0}]
[null,null,null,{"$f":"SUM(DespesesProjecte[[#This Row],[Import imputable a la subvenció municipal]],DespesesProjecte[[#This Row],[Import de l''aportació / Cofinançament de l''organització]])","v":0}]
["I4.  Lloguer de béns immobles",{"$f":"SUM(B88:B90)","v":0},{"$f":"SUM(C88:C90)","v":0},{"$f":"SUM(DespesesProjecte[[#This Row],[Import imputable a la subvenció municipal]],DespesesProjecte[[#This Row],[Import de l''aportació / Cofinançament de l''organització]])","v":0}]
[null,null,null,{"$f":"SUM(DespesesProjecte[[#This Row],[Import imputable a la subvenció municipal]],DespesesProjecte[[#This Row],[Import de l''aportació / Cofinançament de l''organització]])","v":0}]
[null,null,null,{"$f":"SUM(DespesesProjecte[[#This Row],[Import imputable a la subvenció municipal]],DespesesProjecte[[#This Row],[Import de l''aportació / Cofinançament de l''organització]])","v":0}]
[null,null,null,{"$f":"SUM(DespesesProjecte[[#This Row],[Import imputable a la subvenció municipal]],DespesesProjecte[[#This Row],[Import de l''aportació / Cofinançament de l''organització]])","v":0}]
["I5.  Adquisició de materials i béns consumibles parcialment imputables al projecte subvencionable",{"$f":"SUM(B92:B94)","v":0},{"$f":"SUM(C92:C94)","v":0},{"$f":"SUM(DespesesProjecte[[#This Row],[Import imputable a la subvenció municipal]],DespesesProjecte[[#This Row],[Import de l''aportació / Cofinançament de l''organització]])","v":0}]
[null,null,null,{"$f":"SUM(DespesesProjecte[[#This Row],[Import imputable a la subvenció municipal]],DespesesProjecte[[#This Row],[Import de l''aportació / Cofinançament de l''organització]])","v":0}]
[null,null,null,{"$f":"SUM(DespesesProjecte[[#This Row],[Import imputable a la subvenció municipal]],DespesesProjecte[[#This Row],[Import de l''aportació / Cofinançament de l''organització]])","v":0}]
[null,null,null,{"$f":"SUM(DespesesProjecte[[#This Row],[Import imputable a la subvenció municipal]],DespesesProjecte[[#This Row],[Import de l''aportació / Cofinançament de l''organització]])","v":0}]
["I6.  Manteniment d’edificis i/o instal·lacions",{"$f":"SUM(B96:B98)","v":0},{"$f":"SUM(C96:C98)","v":0},{"$f":"SUM(DespesesProjecte[[#This Row],[Import imputable a la subvenció municipal]],DespesesProjecte[[#This Row],[Import de l''aportació / Cofinançament de l''organització]])","v":0}]
[null,null,null,{"$f":"SUM(DespesesProjecte[[#This Row],[Import imputable a la subvenció municipal]],DespesesProjecte[[#This Row],[Import de l''aportació / Cofinançament de l''organització]])","v":0}]
[null,null,null,{"$f":"SUM(DespesesProjecte[[#This Row],[Import imputable a la subvenció municipal]],DespesesProjecte[[#This Row],[Import de l''aportació / Cofinançament de l''organització]])","v":0}]
[null,null,null,{"$f":"SUM(DespesesProjecte[[#This Row],[Import imputable a la subvenció municipal]],DespesesProjecte[[#This Row],[Import de l''aportació / Cofinançament de l''organització]])","v":0}]
["I7.  Comunicacions (telèfon, correus, connexió a internet)",{"$f":"SUM(B100:B102)","v":0},{"$f":"SUM(C100:C102)","v":0},{"$f":"SUM(DespesesProjecte[[#This Row],[Import imputable a la subvenció municipal]],DespesesProjecte[[#This Row],[Import de l''aportació / Cofinançament de l''organització]])","v":0}]
[null,null,null,{"$f":"SUM(DespesesProjecte[[#This Row],[Import imputable a la subvenció municipal]],DespesesProjecte[[#This Row],[Import de l''aportació / Cofinançament de l''organització]])","v":0}]
[null,null,null,{"$f":"SUM(DespesesProjecte[[#This Row],[Import imputable a la subvenció municipal]],DespesesProjecte[[#This Row],[Import de l''aportació / Cofinançament de l''organització]])","v":0}]
[null,null,null,{"$f":"SUM(DespesesProjecte[[#This Row],[Import imputable a la subvenció municipal]],DespesesProjecte[[#This Row],[Import de l''aportació / Cofinançament de l''organització]])","v":0}]
["I8.  Despeses financeres",{"$f":"SUM(B104:B106)","v":0},{"$f":"SUM(C104:C106)","v":0},{"$f":"SUM(DespesesProjecte[[#This Row],[Import imputable a la subvenció municipal]],DespesesProjecte[[#This Row],[Import de l''aportació / Cofinançament de l''organització]])","v":0}]
[null,null,null,{"$f":"SUM(DespesesProjecte[[#This Row],[Import imputable a la subvenció municipal]],DespesesProjecte[[#This Row],[Import de l''aportació / Cofinançament de l''organització]])","v":0}]
[null,null,null,{"$f":"SUM(DespesesProjecte[[#This Row],[Import imputable a la subvenció municipal]],DespesesProjecte[[#This Row],[Import de l''aportació / Cofinançament de l''organització]])","v":0}]
[null,null,null,{"$f":"SUM(DespesesProjecte[[#This Row],[Import imputable a la subvenció municipal]],DespesesProjecte[[#This Row],[Import de l''aportació / Cofinançament de l''organització]])","v":0}]
["I9.  Subministraments ",{"$f":"SUM(B108:B110)","v":0},{"$f":"SUM(C108:C110)","v":0},{"$f":"SUM(DespesesProjecte[[#This Row],[Import imputable a la subvenció municipal]],DespesesProjecte[[#This Row],[Import de l''aportació / Cofinançament de l''organització]])","v":0}]
[null,null,null,{"$f":"SUM(DespesesProjecte[[#This Row],[Import imputable a la subvenció municipal]],DespesesProjecte[[#This Row],[Import de l''aportació / Cofinançament de l''organització]])","v":0}]
[null,null,null,{"$f":"SUM(DespesesProjecte[[#This Row],[Import imputable a la subvenció municipal]],DespesesProjecte[[#This Row],[Import de l''aportació / Cofinançament de l''organització]])","v":0}]
[null,null,null,{"$f":"SUM(DespesesProjecte[[#This Row],[Import imputable a la subvenció municipal]],DespesesProjecte[[#This Row],[Import de l''aportació / Cofinançament de l''organització]])","v":0}]
["I10.  Treball realitzat per altres empreses, parcialment imputables al projecte subvencionable (neteja, seguretat...)",{"$f":"SUM(B112:B114)","v":0},{"$f":"SUM(C112:C114)","v":0},{"$f":"SUM(DespesesProjecte[[#This Row],[Import imputable a la subvenció municipal]],DespesesProjecte[[#This Row],[Import de l''aportació / Cofinançament de l''organització]])","v":0}]
[null,null,null,{"$f":"SUM(DespesesProjecte[[#This Row],[Import imputable a la subvenció municipal]],DespesesProjecte[[#This Row],[Import de l''aportació / Cofinançament de l''organització]])","v":0}]
[null,null,null,{"$f":"SUM(DespesesProjecte[[#This Row],[Import imputable a la subvenció municipal]],DespesesProjecte[[#This Row],[Import de l''aportació / Cofinançament de l''organització]])","v":0}]
[null,null,null,{"$f":"SUM(DespesesProjecte[[#This Row],[Import imputable a la subvenció municipal]],DespesesProjecte[[#This Row],[Import de l''aportació / Cofinançament de l''organització]])","v":0}]
["TOTAL DESPESES INDIRECTES (es podran assignar al projecte subvencionable fent sevir un percentatge d’assignació) - Màxim 10% de l’import imputable a la subvenció municipal",{"$f":"SUM(B75,B79,B83,B87,B91,B95,B99,B103,B107,B111)","v":0},{"$f":"SUM(C75,C79,C83,C87,C91,C95,C99,C103,C107,C111)","v":0},{"$f":"SUM(D75,D79,D83,D87,D91,D95,D99,D103,D107,D111)","v":0}]
["TOTAL DE DESPESES PREVISTES",{"$f":"SUM(B115,B74)","v":0},{"$f":"SUM(C115,C74)","v":0},{"$f":"SUM(D115,D74)","v":0}]
[]
["Atenció: "]
["En cas de persones jurídiques no signeu aquest document ara."]
["Més endavant signareu digitalment aquest document"]
[]
["Atenció: ","Data"]
["En cas de registre físic per les persones físiques","Signatura "]
["Afegiu la data i la signatura de la persona representant legal de l’organització aquí per tal que aquest document tingui validesa legal"]
["  "]
["Obervacions de la modalitat Bb:"]
["1.  La quantia de la subvenció atorgada no superarà el 80% de la despesa total del projecte a subvencionar"]
["2.  L'import màxim de subvenció per a la submodalitat \"Bb1\"  és de 18.000€ i per la submodalitat \"Bb2\" és de 50.000€"]
["3.  En el cas que la sol·licitud presentada sobrepassi l’import màxim, es considerarà com a import sol·licitat el màxim de l'establert a la convocatòria"]
["4. Es limita amb un màxim del 50% l’import de la subvenció per a despeses de personal propi de nova contractació assignat al projecte subvencionat "]
["5. Es limita fins a un màxim del 30% l'import de la subvenció per a despeses de personal propi amb antiguitat anterior a la data d’inici del projecte subvencionat"]
["6. Les despeses de lloguer d’immobles es limiten a un màxim del 25% si es tracta d’un nou espai físic necessari pel desenvolupament del projecte subvencionable"]
["7. En el cas de lloguers d’immobles no relacionats directament amb el desenvolupament del projecte les despeses de lloguer s’imputaran a les despeses indirectes amb el límit establert per aquestes despeses"]
["8. Les despeses indirectes imputades al projecte, detallades en l’apartat 13.3. de les bases reguladores, no podran superar el 10% de l’import de la subvenció"]
["9.  El caràcter subvencionable de la despesa d'amortització estarà subjecte a les condicions següents:"]
[";- Que les subvencions no hagin contribuït a la compra dels béns"]
["- Que l'amortització es calculi de conformitat amb les normes de comptabilitat generalment acceptades."]
["- Que el cost es refereixi al període subvencionable."]
["10. Quan s'hagi de fer despeses de més de 12.000 €, sense IVA, en el cas de prestacions de serveis o lliurament de béns i per aquelles despeses de més de 30.000 €, sense IVA,"]
["    en el cas d'execució d'obres, hauran d'incorporar tres pressupostos sol·licitats i argumentar el motiu de l'adjudicació en el cas de no ser la proposta més avantatjosa econòmicament"]
["11. En cap cas es consideraran despeses subvencionables:"]
["- Els impostos indirectes quan siguin susceptibles de recuperació o compensació"]
["- Les despeses d'inversió, incloses les adquisicions de béns mobles"]
["- Les despeses realitzades amb data anterior a l'inici del projecte i data posterior a la finalització del projecte"]
["- Altres despeses que s'indiquin a la convocatòria"]
["12.  Per les subvencions atorgades per import superior a 20.000 € és necessari un informe d'auditoria per a la justificació. L'import d'aquest informe es considera despesa subvencionable, amb un límit màxim de 1.500 €"]
["13. No seran elegibles factures emeses entre les organitzacions participants de l’acord de cooperació"]
["14. La retribució de les persones contractades en el marc del projecte subvencionat no podrà ser inferior al Salari Mínim Interprofessional, ni a l’estipulada al corresponent conveni o marc normatiu de referència"]